bitfinex/quotes_ETHUSD_20241217
["timestamp","ask_amount","ask_price","bid_price","bid_amount"]
[1734479419601,1.1036957,3878.3,3877.7,0.8285]
[1734479419931,2.40696428,3878.3,3877.7,0.8285]
[1734479420134,4.95325971,3878.2,3876.6,0.8285]
[1734479420276,1.33589054,3878.1,3876.6,0.8285]
[1734479420599,1.07146113,3878.3,3876.9,2.98249289]
[1734479420801,1.07146113,3878.6,3877.0,0.8285]
[1734479420982,1.07146113,3878.7,3877.2,0.8285]
[1734479421571,1.07146113,3878.7,3877.3,2.98249289]
[1734479421771,1.30341344,3879.0,3877.3,2.98249289]
[1734479421772,1.07146113,3878.8,3877.4,0.8285]
[1734479422545,1.10368958,3878.8,3877.4,0.8285]
[1734479422750,1.30338065,3878.7,3877.4,0.8285]
[1734479423139,1.07146113,3878.8,3877.4,0.8285]
[1734479423340,2.34870318,3878.8,3877.4,0.8285]
[1734479423928,1.27724205,3878.8,3877.6,0.8285]
[1734479424260,2.57891,3877.6,3876.6,0.8285]
[1734479424414,2.57891,3877.6,3875.5,0.8285]
[1734479424415,2.98249289,3877.2,3875.5,0.8285]
[1734479424619,2.57939,3876.9,3875.5,0.8285]
[1734479424853,0.03224801,3876.8,3875.5,0.8285]
[1734479425423,3.03224842,3877.1,3875.5,0.8285]
[1734479425628,1.07146113,3877.2,3875.5,0.8285]
[1734479425851,1.10370648,3877.2,3875.5,0.8285]
[1734479426049,1.10370648,3877.2,3875.3,3.0]
[1734479426050,0.03224535,3877.2,3875.7,0.8285]
[1734479426843,1.10370647,3877.3,3875.7,0.8285]
[1734479427054,0.12760123,3877.2,3875.7,0.8285]
[1734479427465,0.03224534,3877.1,3875.7,0.8285]
[1734479427856,2.69347894,3878.0,3875.7,0.8285]
[1734479427857,1.07146113,3878.3,3876.1,0.8285]
[1734479428076,4.05395402,3878.4,3876.3,0.8285]
[1734479428380,1.07146113,3878.7,3876.5,0.8285]
[1734479428554,0.03223266,3878.6,3876.7,0.8285]
[1734479429155,1.10369379,3878.6,3876.7,0.8285]
[1734479429359,2.57835,3878.5,3876.7,0.8285]
[1734479429601,0.03223591,3878.4,3876.7,0.8285]
[1734479429974,2.61061591,3878.4,3876.7,0.8285]
[1734479430174,1.10369704,3878.4,3876.7,0.8285]
[1734479430480,3.65001113,3878.2,3876.7,0.8285]
[1734479430647,1.30612386,3878.1,3876.7,0.8285]
[1734479430846,0.03223941,3878.1,3876.7,0.8285]
[1734479431499,1.07146113,3878.2,3876.7,0.8285]
[1734479431789,1.07146113,3878.3,3876.7,0.8285]
[1734479431973,2.34517965,3878.3,3876.7,0.8285]
[1734479432358,3.03223711,3878.2,3876.7,0.8285]
[1734479432684,2.34514293,3878.1,3876.7,0.8285]
[1734479432912,0.03223919,3878.0,3876.7,0.8285]
[1734479433210,0.03223919,3878.1,3876.7,0.8285]
[1734479433502,5.57851,3878.2,3876.7,0.8285]
[1734479433666,0.0322392,3878.1,3876.7,0.8285]
[1734479433868,2.6108492,3878.1,3876.7,0.8285]
[1734479434368,3.0,3878.2,3876.7,0.8285]
[1734479434568,1.07146113,3878.3,3876.7,0.8285]
[1734479434769,2.3448121,3878.3,3876.7,0.8285]
[1734479434969,1.10369877,3878.4,3876.7,0.8285]
[1734479435206,2.34479294,3878.3,3876.7,0.8285]
[1734479435374,1.07146113,3878.3,3876.7,0.8285]
[1734479435580,0.03223765,3878.2,3876.7,0.8285]
[1734479435804,1.10369879,3878.3,3876.7,0.8285]
[1734479436168,0.03223766,3878.3,3876.7,0.8285]
[1734479436523,1.07146113,3878.6,3876.7,0.8285]
[1734479436803,1.7388771,3878.7,3876.7,0.8285]
[1734479436804,1.23538004,3878.7,3876.7,0.8285]
[1734479437302,1.07146113,3878.5,3876.7,0.8285]
[1734479437502,0.03223727,3878.4,3876.7,0.8285]
[1734479437936,1.1036984,3878.4,3876.7,0.8285]
[1734479438216,0.03223502,3878.4,3876.7,0.8285]
[1734479438415,1.07146113,3878.5,3876.7,0.8285]
[1734479438910,2.34488738,3878.5,3876.7,0.8285]
[1734479439219,0.03223538,3878.4,3876.7,0.8285]
[1734479439977,1.07146113,3878.5,3876.7,0.8285]
[1734479440225,0.0322354,3878.4,3876.7,0.8285]
[1734479440437,2.37747642,3878.4,3876.7,0.8285]
[1734479440637,1.10369653,3878.4,3876.7,0.8285]
[1734479441135,1.07146113,3878.4,3876.7,0.8285]
[1734479441337,4.6071917,3878.6,3876.9,0.7715]
[1734479441338,1.07146113,3878.6,3876.9,0.7715]
[1734479441635,0.03223077,3878.7,3876.9,0.7715]
[1734479441833,0.03223077,3878.7,3877.0,0.90365]
[1734479443239,1.07146113,3878.5,3877.0,0.90365]
[1734479443553,1.10369689,3878.4,3877.0,0.7715]
[1734479443702,1.07146113,3878.3,3877.0,0.7715]
[1734479444051,0.03223567,3878.2,3877.0,0.7715]
[1734479444633,1.07146113,3878.3,3877.0,0.7715]
[1734479445635,2.34575674,3878.4,3877.0,0.7715]
[1734479445838,1.27433777,3878.3,3877.0,0.7715]
[1734479446139,0.03223548,3878.2,3877.0,0.7715]
[1734479446435,1.07146113,3878.4,3877.0,0.7715]
[1734479446599,2.34584496,3878.4,3877.0,0.7715]
[1734479447529,1.07146113,3878.5,3877.0,0.7715]
[1734479447728,1.07146113,3878.7,3877.0,0.7715]
[1734479447940,2.34584695,3878.7,3877.0,0.7715]
[1734479448176,1.07146113,3878.8,3877.0,0.7715]
[1734479448819,2.34580545,3878.7,3877.0,0.7715]
[1734479449151,1.07146113,3878.8,3877.0,0.7715]
[1734479449321,1.2743895,3878.8,3877.0,0.7715]
[1734479449520,1.10369216,3878.9,3877.0,0.7715]
[1734479449833,1.10369216,3878.9,3877.2,0.8092]
[1734479450038,1.27440159,3878.8,3877.2,0.8092]
[1734479450255,1.10369216,3878.9,3877.2,0.8092]
[1734479450455,1.27443429,3878.8,3877.2,0.8092]
[1734479450615,1.10369216,3878.9,3877.2,0.8092]
[1734479450821,1.27444331,3878.8,3877.4,0.8092]
[1734479451059,1.10369216,3878.9,3877.4,0.8092]
[1734479451241,1.07146113,3879.0,3877.4,0.8092]
[1734479451562,2.34604666,3878.9,3877.4,0.8092]
[1734479451822,1.07146113,3879.0,3877.4,0.8092]
[1734479452232,1.07146113,3878.9,3877.4,0.8092]
[1734479452427,0.03222918,3878.8,3877.4,0.8092]
[1734479452955,1.07146113,3878.8,3877.4,0.8092]
[1734479453154,1.07146113,3879.0,3877.4,0.8092]
[1734479453329,2.34607213,3879.0,3877.4,0.8092]
[1734479453538,1.3068402,3878.9,3877.4,0.8092]
[1734479453855,0.0322292,3878.9,3877.4,0.8092]
[1734479454023,1.10369034,3879.0,3877.4,0.8092]
[1734479454352,2.34624118,3878.9,3877.4,0.8092]
[1734479454538,0.03222922,3878.8,3877.4,0.8092]
[1734479455358,2.37872878,3878.8,3877.4,0.8092]
[1734479455560,1.27503843,3878.7,3877.4,0.8092]
[1734479455775,1.10369035,3878.8,3877.4,0.8092]
[1734479456326,1.27524882,3878.7,3877.4,0.8092]
[1734479456525,1.07146113,3878.8,3877.4,0.8092]
[1734479457168,0.03222926,3878.7,3877.4,0.8092]
[1734479457534,1.07146113,3878.8,3877.4,0.8092]
[1734479457732,2.34689863,3878.8,3877.4,0.8092]
[1734479457983,1.2754375,3878.7,3877.4,0.8092]
[1734479458142,0.03222927,3878.7,3877.4,0.8092]
[1734479458652,1.07146113,3879.3,3877.9,0.8092]
[1734479458817,1.07146113,3879.6,3878.2,0.8092]
[1734479459022,1.07146113,3879.7,3878.2,0.8092]
[1734479459223,2.14292226,3880.1,3878.2,0.8092]
[1734479459224,1.07146113,3879.8,3878.2,0.8092]
[1734479459522,1.07146113,3879.9,3878.4,0.8092]
[1734479459748,0.13180396,3879.8,3878.4,0.8092]
[1734479459954,0.03222256,3879.7,3878.4,0.8092]
[1734479460161,1.07146113,3879.7,3878.4,0.8092]
[1734479460319,2.34609405,3879.7,3878.4,0.8092]
[1734479460524,0.03222259,3879.6,3878.4,0.8092]
[1734479461020,1.07146113,3879.4,3878.4,0.8092]
[1734479461220,0.03222646,3879.3,3878.4,0.8092]
[1734479461441,1.10368759,3879.3,3878.4,0.8092]
[1734479461643,1.07146113,3879.3,3878.4,0.8092]
[1734479461854,0.03222635,3879.3,3878.4,0.8092]
[1734479462157,1.27457933,3879.2,3878.4,0.8092]
[1734479462359,1.10368748,3879.3,3878.4,0.8092]
[1734479462659,0.03222635,3879.3,3878.4,0.8092]
[1734479463221,2.37809044,3879.3,3878.4,0.8092]
[1734479463421,2.34586409,3879.2,3878.4,0.8092]
[1734479463647,0.0322291,3879.1,3878.4,0.8092]
[1734479463846,1.07146113,3879.2,3878.4,0.8092]
[1734479464069,2.34579161,3879.2,3878.4,0.8092]
[1734479464631,0.0322291,3879.1,3878.4,0.8092]
[1734479464858,2.3779899,3879.1,3878.4,0.8092]
[1734479465061,4.25827041,3879.0,3877.1,0.7831]
[1734479465247,2.98397074,3878.6,3877.1,0.7831]
[1734479465463,1.27447698,3878.5,3877.1,0.7831]
[1734479465644,4.08766573,3878.6,3877.1,0.7831]
[1734479465645,1.07146113,3878.6,3877.1,0.7831]
[1734479465844,1.07146113,3878.7,3877.1,0.7831]
[1734479467374,1.07146113,3879.5,3877.9,2.98397074]
[1734479467578,2.14292226,3879.8,3877.9,2.98397074]
[1734479467579,1.07146113,3879.8,3878.1,0.7831]
[1734479467877,1.07146113,3879.9,3878.1,0.7831]
[1734479468078,1.07146113,3880.0,3878.2,1.66865067]
[1734479468265,1.07146113,3880.1,3878.3,0.7831]
[1734479468472,2.3101948,3880.1,3878.3,0.7831]
[1734479468667,1.23873367,3880.0,3878.3,0.7831]
[1734479468978,1.07146113,3880.1,3878.3,0.7831]
[1734479469157,2.3101895,3880.1,3878.3,0.7831]
[1734479469354,1.07146113,3880.2,3878.3,0.7831]
[1734479469577,2.30978324,3880.2,3878.3,2.98397074]
[1734479469777,1.23835634,3880.1,3878.5,0.7831]
[1734479470097,1.07146113,3880.2,3878.5,0.7831]
[1734479470249,2.14292226,3880.6,3878.5,0.7831]
[1734479470250,1.07146113,3880.3,3878.5,0.7831]
[1734479470446,1.07146113,3880.4,3878.5,0.7831]
[1734479470978,2.8451636,3880.6,3878.8,0.7831]
[1734479470979,1.07146113,3880.6,3878.8,0.7831]
[1734479471148,1.07146113,3880.6,3878.7,2.98397074]
[1734479471149,1.07146113,3880.7,3879.0,0.7831]
[1734479471479,1.07146113,3880.9,3879.0,0.7831]
[1734479471682,1.10367642,3881.1,3879.2,0.7831]
[1734479471880,1.23748835,3881.0,3879.2,0.7831]
[1734479472048,1.10367642,3881.1,3879.2,0.7831]
[1734479472247,0.03221529,3881.1,3879.4,0.7831]
[1734479472459,2.30859027,3881.1,3879.4,0.7831]
[1734479472658,0.03221374,3881.0,3879.4,0.7831]
[1734479473055,2.34085484,3881.0,3879.4,0.7831]
[1734479473264,1.10367487,3881.0,3879.4,0.7831]
[1734479473581,0.03221374,3881.0,3879.4,0.7831]
[1734479474481,3.0,3880.9,3879.4,0.7831]
[1734479474687,1.26878582,3880.8,3879.4,0.7831]
[1734479474875,0.0322174,3880.8,3879.4,0.7831]
[1734479475985,3.0,3880.5,3879.4,0.7831]
[1734479476170,0.03221915,3880.4,3879.4,0.7831]
[1734479477975,2.5772,3880.2,3879.4,0.7831]
[1734479478171,3.03222159,3880.1,3879.4,0.7831]
[1734479479071,2.57766,3879.5,3877.3,1.06016443]
[1734479479274,3.8042,3879.6,3877.1,2.98397074]
[1734479479275,3.0,3879.2,3877.5,0.7831]
[1734479479480,0.03222789,3879.1,3877.5,0.7831]
[1734479479681,0.03222789,3879.3,3877.5,0.7831]
[1734479480209,0.0322279,3879.5,3877.6,0.7831]
[1734479481225,1.07146113,3880.0,3878.2,0.7831]
[1734479481408,0.03222248,3879.9,3878.4,0.7831]
[1734479482609,3.03222244,3880.1,3878.4,0.7831]
[1734479483715,1.07146113,3880.3,3878.4,0.7831]
[1734479483915,1.07146113,3880.5,3878.6,0.7831]
[1734479484112,0.03221921,3880.4,3878.6,0.7831]
[1734479484411,0.03221921,3880.4,3878.8,0.7573]
[1734479484581,1.10368034,3880.4,3878.8,0.7573]
[1734479484779,0.03221921,3880.4,3878.8,0.7573]
[1734479485181,3.03221921,3880.4,3878.8,0.7573]
[1734479485601,4.10368034,3880.4,3878.8,0.7573]
[1734479485781,4.10368034,3880.4,3878.7,0.67670707]
[1734479485782,3.03221921,3880.4,3879.0,0.7573]
[1734479486307,4.10368034,3880.4,3879.0,0.7573]
[1734479486712,3.0,3880.2,3879.0,0.7573]
[1734479486901,0.03222124,3880.1,3879.0,0.7573]
[1734479489015,2.57746,3879.8,3879.0,0.7573]
[1734479489378,3.64892113,3879.8,3879.0,0.7573]
[1734479489582,1.23781212,3879.7,3879.0,0.7573]
[1734479489915,0.03222553,3879.9,3879.0,0.7573]
[1734479489916,1.07146113,3879.9,3879.0,0.7573]
[1734479490116,1.07146113,3880.3,3879.0,0.7573]
[1734479490321,1.07146113,3880.6,3879.0,0.7573]
[1734479490610,2.57654,3881.2,3879.2,0.7573]
[1734479490810,0.03221438,3881.1,3879.2,0.7573]
[1734479491013,1.23752142,3881.0,3879.2,0.7573]
[1734479491226,2.34507275,3880.9,3879.2,0.7573]
[1734479491423,1.10755133,3880.9,3879.2,0.7573]
[1734479491638,1.10755133,3880.9,3879.4,0.7573]
[1734479491639,1.07533695,3880.7,3879.4,0.7573]
[1734479491811,0.03221447,3880.6,3879.4,0.7573]
[1734479492389,2.3130461,3880.6,3879.4,0.7573]
[1734479492600,1.07533695,3880.6,3879.4,0.7573]
[1734479492923,1.07533695,3880.7,3879.4,0.7573]
[1734479493231,2.31316123,3880.7,3879.4,0.7573]
[1734479493722,2.31316123,3880.6,3879.4,0.7573]
[1734479494127,5.29713197,3880.6,3879.4,0.7573]
[1734479494293,1.07533695,3880.2,3879.4,0.7573]
[1734479494624,1.61300542,3880.3,3878.3,0.7668]
[1734479494625,0.794,3880.0,3878.3,0.7668]
[1734479494811,2.57758,3879.6,3878.3,0.7668]
[1734479495027,1.27005025,3879.5,3878.3,0.7668]
[1734479495187,1.10756292,3879.5,3878.3,0.7668]
[1734479495587,1.2385923,3879.4,3878.3,0.7668]
[1734479495822,1.10756292,3879.5,3878.3,0.7668]
[1734479496027,0.03222597,3879.5,3878.3,0.7668]
[1734479496800,2.34624066,3879.5,3878.3,0.7668]
[1734479497111,1.10756292,3879.5,3878.3,0.7668]
[1734479497432,3.0,3879.3,3878.3,0.7668]
[1734479497625,2.3462543,3879.2,3878.3,0.7668]
[1734479497928,2.31402622,3879.1,3878.3,0.7668]
[1734479498133,1.10756601,3879.2,3878.3,0.7668]
[1734479498331,1.07533695,3879.2,3878.3,0.7668]
[1734479498542,2.31420575,3879.2,3878.3,0.7668]
[1734479498721,0.03222907,3879.2,3878.3,0.7668]
[1734479498927,1.07533695,3879.2,3878.3,0.7668]
[1734479499153,4.07533695,3879.4,3878.3,0.7668]
[1734479499436,1.23882056,3879.3,3878.3,0.7668]
[1734479499608,1.07533695,3879.4,3878.3,0.7668]
[1734479499936,0.03222609,3879.3,3878.3,0.7668]
[1734479500241,3.0,3879.5,3878.3,0.7668]
[1734479500242,1.07533695,3879.5,3878.3,0.7668]
[1734479500445,1.07533695,3879.6,3878.3,0.7668]
[1734479500849,2.3142457,3879.6,3878.3,0.7668]
[1734479501147,1.07533695,3879.7,3878.3,0.7668]
[1734479501348,0.12955768,3879.8,3878.3,0.7668]
[1734479501349,1.07533695,3879.8,3878.3,0.7668]
[1734479501518,1.07533695,3879.9,3878.3,0.7668]
[1734479501855,1.07533695,3879.9,3878.2,3.0]
[1734479501856,1.07533695,3880.0,3878.5,0.7668]
[1734479502063,0.03222164,3879.9,3878.5,0.7668]
[1734479502713,1.10755859,3879.9,3878.5,0.7668]
[1734479503149,2.31443979,3879.8,3878.5,0.7668]
[1734479503348,0.03222166,3879.7,3878.5,0.7668]
[1734479503555,0.03222166,3879.7,3878.7,0.7668]
[1734479504469,2.31475753,3879.6,3878.7,0.7668]
[1734479504666,1.07533695,3879.6,3878.7,0.7668]
[1734479504855,1.07533695,3879.5,3878.7,0.7668]
[1734479505055,2.31475753,3879.5,3878.7,0.7668]
[1734479505254,1.23952825,3879.4,3878.7,0.7668]
[1734479505454,1.07533695,3879.5,3878.7,0.7668]
[1734479505866,1.07533695,3879.6,3878.7,0.7668]
[1734479506762,2.31478133,3879.5,3878.7,0.7668]
[1734479506958,1.07533695,3879.5,3878.7,0.7668]
[1734479507158,1.07533695,3879.6,3878.7,0.7668]
[1734479507357,1.07533695,3879.5,3878.7,0.7668]
[1734479508079,1.07533695,3879.6,3878.7,0.7668]
[1734479508640,1.07533695,3879.7,3878.7,0.7668]
[1734479508857,1.07533695,3879.8,3878.7,0.7668]
[1734479509058,1.07533695,3880.0,3878.7,0.7668]
[1734479509265,1.07533695,3880.1,3878.7,0.7668]
[1734479509986,1.07533695,3880.2,3878.7,0.7668]
[1734479510173,1.10755714,3880.3,3878.7,0.7668]
[1734479510333,1.2394077,3880.2,3878.7,0.7668]
[1734479510677,1.10755714,3880.3,3878.7,0.7668]
[1734479510986,1.23939459,3880.2,3878.7,0.7668]
[1734479511270,1.07533695,3880.3,3878.7,0.7668]
[1734479511642,1.07533695,3880.4,3878.8,3.0]
[1734479511843,1.07533695,3880.4,3879.0,0.8156]
[1734479512075,1.07533695,3880.5,3879.0,0.8156]
[1734479512239,1.10755228,3880.4,3879.0,0.8156]
[1734479512573,2.31490455,3880.3,3879.0,0.8156]
[1734479512872,1.10755228,3880.4,3879.0,0.8156]
[1734479513075,1.23986454,3880.3,3879.2,0.8156]
[1734479513373,1.10755228,3880.4,3879.2,0.8156]
[1734479514263,1.24005617,3880.3,3879.2,0.8156]
[1734479514460,1.10755228,3880.4,3879.2,0.8156]
[1734479514663,1.23999229,3880.3,3879.2,0.8156]
[1734479514867,1.10755228,3880.4,3879.2,0.8156]
[1734479515062,1.2400038,3880.3,3879.2,0.8156]
[1734479515261,4.07533695,3880.5,3879.2,0.8156]
[1734479515472,1.23989674,3880.4,3879.2,0.8156]
[1734479515672,1.07533695,3880.5,3879.2,0.8156]
[1734479515868,1.10755234,3880.4,3879.2,0.8156]
[1734479516070,0.03221539,3880.4,3879.2,0.8156]
[1734479516862,1.07533695,3880.6,3879.2,0.8156]
[1734479517058,2.31512847,3880.6,3879.2,0.8156]
[1734479517261,1.23979152,3880.5,3879.2,0.8156]
[1734479517481,1.07533695,3880.6,3879.2,0.8156]
[1734479518408,2.31507248,3880.6,3879.2,0.8156]
[1734479518692,1.23979351,3880.5,3879.2,0.8156]
[1734479518888,1.07533695,3880.6,3879.2,0.8156]
[1734479519066,2.31512968,3880.6,3879.2,0.8156]
[1734479519391,1.07533695,3880.6,3879.2,0.8156]
[1734479519593,2.57638,3881.5,3879.2,0.8156]
[1734479519594,1.07533695,3880.7,3879.2,0.8156]
[1734479520953,2.31509788,3880.7,3879.2,0.8156]
[1734479521173,1.07533695,3880.8,3879.2,0.8156]
[1734479521589,1.07533695,3880.9,3879.4,0.8156]
[1734479522278,1.07533695,3881.0,3879.4,0.8156]
[1734479522466,1.07533695,3881.0,3879.6,0.8159]
[1734479522653,1.07533695,3881.1,3879.6,0.8159]
[1734479522853,2.31467201,3881.0,3879.6,0.8159]
[1734479523067,1.07533695,3881.1,3879.6,0.8159]
[1734479523306,2.31467711,3881.1,3879.6,0.8159]
[1734479523467,1.07533695,3881.4,3880.5,2.98397074]
[1734479523678,3.98229401,3882.3,3880.9,2.98397074]
[1734479523679,1.07533695,3882.0,3880.9,2.98397074]
[1734479523901,1.07533695,3882.1,3881.0,0.8159]
[1734479524092,1.07533695,3882.3,3881.1,0.8159]
[1734479524417,1.07533695,3882.8,3881.3,0.8159]
[1734479524783,1.1399698,3882.7,3881.3,0.8159]
[1734479525135,1.07533695,3882.8,3881.3,0.8159]
[1734479525271,0.03219863,3882.9,3881.3,0.8159]
[1734479525474,1.10753558,3882.9,3881.3,0.8159]
[1734479525712,1.13925472,3882.8,3881.3,0.8159]
[1734479526181,1.72149314,3882.7,3881.3,0.8159]
[1734479526475,0.55,3882.4,3881.3,0.8159]
[1734479526741,0.7507,3882.3,3881.3,0.8159]
[1734479526907,0.55,3881.7,3880.0,0.8159]
[1734479527206,6.31049074,3882.3,3880.0,0.8159]
[1734479527207,0.55,3881.5,3880.0,0.8159]
[1734479527708,0.0322076,3881.4,3880.0,0.8159]
[1734479528288,0.0322076,3881.4,3880.0,1.19588707]
[1734479528289,0.55,3881.3,3880.0,1.19588707]
[1734479528620,0.55,3881.1,3880.0,0.8159]
[1734479528826,3.12662,3881.1,3880.0,0.8159]
[1734479528987,2.57682,3880.8,3880.0,0.8159]
[1734479529191,0.55,3880.6,3880.0,0.8159]
[1734479530029,0.55,3880.8,3880.0,0.8159]
[1734479530232,0.55,3880.6,3880.0,0.8159]
[1734479530425,0.0322155,3880.5,3880.0,0.8159]
[1734479537251,0.55,3880.4,3880.0,0.8159]
[1734479537819,3.15913699,3880.6,3880.0,0.8159]
[1734479538715,0.58221699,3880.6,3880.0,0.8159]
[1734479538935,2.57725,3880.1,3879.6,0.8159]
[1734479539232,0.58222078,3880.0,3879.2,0.8159]
[1734479539551,2.57741,3879.9,3879.2,0.8159]
[1734479539705,0.58222317,3879.8,3879.2,0.8159]
[1734479541541,0.58222315,3880.1,3879.2,0.8159]
[1734479541767,0.55,3880.1,3879.2,0.8159]
[1734479542215,0.55,3879.9,3879.2,0.8159]
[1734479543143,3.12731,3880.0,3878.3,0.8159]
[1734479543319,0.55,3879.8,3878.3,0.8159]
[1734479543524,0.55,3879.8,3878.4,0.67998707]
[1734479543723,3.12747,3879.8,3878.5,0.8159]
[1734479544759,3.1596956,3879.8,3878.5,0.8159]
[1734479545765,0.5822256,3879.8,3878.5,0.8159]
[1734479546327,0.55,3879.8,3878.5,0.8159]
[1734479546544,0.55,3879.8,3878.6,0.14958871]
[1734479547126,0.55,3879.6,3878.6,0.14958871]
[1734479547327,0.55,3879.4,3878.6,0.14958871]
[1734479547562,0.55,3879.6,3878.6,0.14958871]
[1734479547779,0.55,3879.7,3878.6,0.14958871]
[1734479547930,0.55,3879.5,3878.6,0.14958871]
[1734479548642,2.98397074,3879.9,3878.6,0.14958871]
[1734479548827,0.55,3879.8,3878.6,0.14958871]
[1734479549959,1.07533695,3880.3,3878.7,0.8159]
[1734479550274,1.07533695,3880.6,3878.7,0.8159]
[1734479550431,1.82603695,3880.7,3878.7,0.8159]
[1734479550632,1.85825544,3880.7,3878.7,0.8159]
[1734479550973,2.21534825,3880.6,3878.9,0.8159]
[1734479551262,7.77636494,3880.5,3878.9,0.8159]
[1734479551461,0.02819472,3880.4,3878.9,0.8159]
[1734479552172,0.57819472,3880.4,3878.9,0.8159]
[1734479552629,0.55,3880.4,3878.9,0.8159]
[1734479553257,0.55,3880.2,3878.9,0.8159]
[1734479553475,0.57819472,3880.3,3878.9,0.8159]
[1734479553696,2.98397074,3880.5,3878.9,0.8159]
[1734479553901,0.55,3880.6,3878.9,0.8159]
[1734479554064,0.02819472,3880.7,3879.1,0.8057]
[1734479554259,1.10353167,3880.7,3879.1,0.8057]
[1734479554860,0.02819472,3880.7,3879.1,0.8057]
[1734479555198,1.07533695,3880.8,3879.1,0.8057]
[1734479555378,4.05930769,3880.9,3879.1,0.8057]
[1734479555693,0.55,3880.8,3879.1,0.8057]
[1734479556258,1.07533695,3881.1,3879.2,0.8057]
[1734479556472,1.14039761,3881.1,3879.4,0.8057]
[1734479556807,1.07533695,3881.2,3879.4,0.8057]
[1734479556993,2.21569215,3881.2,3879.4,0.83147053]
[1734479557196,4.05930769,3881.3,3879.4,0.83147053]
[1734479557412,1.14028655,3881.2,3879.4,0.83147053]
[1734479557611,4.05930769,3881.3,3879.6,0.8057]
[1734479557912,2.98397074,3881.3,3879.6,0.8057]
[1734479558276,2.79384106,3881.2,3879.6,0.8057]
[1734479558603,0.55,3881.0,3879.6,0.8057]
[1734479558904,1.14030939,3881.1,3879.6,0.8057]
[1734479558905,0.02819472,3880.9,3879.6,0.8057]
[1734479559089,0.55,3880.8,3879.6,0.8057]
[1734479559321,0.55,3880.4,3879.6,0.8057]
[1734479559468,0.02819472,3880.3,3879.6,0.8057]
[1734479561372,0.02819472,3880.3,3878.2,5.98397074]
[1734479561373,2.98397074,3880.1,3878.2,0.8057]
[1734479561568,2.98397074,3880.1,3878.4,0.8057]
[1734479561569,0.57819472,3880.0,3878.4,0.8057]
[1734479561773,2.98397074,3879.7,3878.4,0.8057]
[1734479561974,0.02819472,3879.6,3878.4,0.8057]
[1734479562201,2.98397074,3879.7,3878.4,0.8057]
[1734479562605,0.55,3879.9,3878.4,0.8057]
[1734479563195,3.01216546,3880.1,3878.4,0.8057]
[1734479563196,0.02819472,3879.8,3878.4,0.8057]
[1734479563512,3.12753,3879.7,3878.4,0.8057]
[1734479563809,0.02819472,3879.6,3878.4,0.8057]
[1734479564583,0.55,3879.6,3878.4,0.8057]
[1734479564911,0.02819472,3879.5,3878.4,0.8057]
[1734479565106,0.57819472,3879.5,3878.4,0.8057]
[1734479565411,0.55,3879.3,3878.4,0.8057]
[1734479565583,0.57819472,3879.2,3878.4,0.8057]
[1734479566394,1.546,3879.7,3878.6,0.8057]
[1734479566395,0.55,3879.7,3878.6,0.8057]
[1734479566595,0.02492326,3879.6,3878.6,0.8057]
[1734479568695,0.57492326,3879.6,3878.6,0.8057]
[1734479569494,3.15251326,3879.6,3878.6,0.8057]
[1734479569956,0.55,3879.4,3878.6,0.8057]
[1734479570550,0.55,3879.5,3878.6,0.8057]
[1734479571098,0.02492326,3879.4,3878.6,0.8057]
[1734479571996,0.57492326,3879.5,3878.6,0.8057]
[1734479572198,0.55,3879.3,3878.6,0.8057]
[1734479572397,0.57492326,3879.3,3878.6,0.8057]
[1734479572831,0.55,3879.1,3878.0,0.7661]
[1734479573047,0.02492326,3879.0,3878.0,0.7661]
[1734479573415,1.14193085,3878.9,3878.0,0.7661]
[1734479573735,0.02492326,3878.8,3878.0,0.7661]
[1734479574132,0.55,3878.6,3878.0,0.7661]
[1734479574296,0.02492326,3878.5,3878.0,0.7661]
[1734479574934,1.62533695,3878.8,3878.0,0.7661]
[1734479575195,0.55,3878.6,3878.0,0.7661]
[1734479575398,0.55,3878.8,3878.0,0.7661]
[1734479575659,0.55,3878.9,3878.0,0.7661]
[1734479575816,0.55,3879.1,3878.0,0.7661]
[1734479576005,0.57492326,3879.1,3878.0,0.7661]
[1734479576912,0.56192326,3879.1,3878.0,0.7661]
[1734479577744,0.537,3879.1,3878.0,0.7661]
[1734479578515,0.56192326,3879.1,3878.0,0.7661]
[1734479578709,0.537,3879.1,3878.0,0.7661]
[1734479579733,0.02492326,3879.0,3878.0,0.7661]
[1734479579937,0.537,3879.1,3878.0,0.7661]
[1734479581029,0.02492326,3879.0,3878.0,0.7661]
[1734479581547,0.55,3879.2,3878.0,0.7661]
[1734479581708,1.69126958,3879.2,3878.0,0.7661]
[1734479581904,0.55,3879.2,3878.0,0.7661]
[1734479582118,0.02492326,3879.1,3878.0,0.7661]
[1734479582746,0.55,3878.8,3878.0,0.7661]
[1734479582957,2.60310326,3878.7,3878.0,0.7661]
[1734479583258,0.55,3878.6,3878.0,0.7661]
[1734479583461,0.02492326,3878.5,3878.0,0.7661]
[1734479584238,0.55,3878.8,3878.0,0.7661]
[1734479584239,0.02492326,3878.7,3878.0,0.7661]
[1734479585027,2.60312326,3878.7,3878.0,0.7661]
[1734479585229,0.55,3878.6,3878.0,0.7661]
[1734479585434,0.02492326,3878.5,3878.0,0.7661]
[1734479586828,0.02492326,3878.5,3877.6,0.8111]
[1734479587036,0.55,3878.4,3876.2,0.8111]
[1734479587348,3.12858,3878.1,3876.2,0.8111]
[1734479587552,0.02492326,3878.0,3876.2,0.8111]
[1734479588075,0.02492326,3878.0,3876.2,0.37103322]
[1734479588377,0.55,3877.8,3876.4,0.8111]
[1734479588513,0.02492326,3877.7,3876.4,0.8111]
[1734479589246,0.02492326,3877.7,3876.4,1.18213322]
[1734479589551,0.57492326,3877.9,3876.6,0.8111]
[1734479589750,1.7334037,3878.5,3876.5,0.37103322]
[1734479589751,0.55,3878.4,3876.8,0.8111]
[1734479589954,0.02492326,3878.3,3876.8,1.18213322]
[1734479590121,0.02492326,3878.3,3877.0,0.8111]
[1734479590741,0.55,3878.2,3877.0,0.8111]
[1734479590944,0.02492326,3878.1,3877.0,0.8111]
[1734479591440,0.55,3878.0,3877.0,0.8111]